fUSD/lending_fUSD_20240118
["ID","MTS","AMOUNT","RATE_DAILY","PERIOD"]
[312008376,1705543850242,-329.00317202,0.00022191,2]
[312008377,1705543850252,-523.00856715,0.00022191,2]
[312008378,1705543850261,-291.86515251,0.00022191,2]
[312008379,1705543850271,-500.0,0.00022191,2]
[312008380,1705543850281,-500.0,0.00022191,2]
[312008381,1705543850290,-369.90952608,0.00022191,2]
[312008382,1705543850301,-507.17270586,0.00022191,2]
[312008383,1705543850311,-254.67302694,0.00022191,2]
[312008384,1705543850320,-619.90270087,0.00022191,2]
[312008385,1705543850331,-562.3602208,0.00022191,2]
[312008386,1705543850341,-523.65,0.00022191,2]
[312008387,1705543850352,-424.39,0.00022191,2]
[312008388,1705543850362,-521.96983673,0.00022191,2]
[312008389,1705543850371,-241.06970433,0.00022191,2]
[312008390,1705543850381,-604.68538258,0.00022191,2]
[312008391,1705543850391,-152.75061119,0.00022191,2]
[312008392,1705543850400,-484.13878347,0.00022191,2]
[312008393,1705543850409,-500.0,0.00022191,2]
[312008394,1705543850418,-455.52655444,0.00022191,2]
[312008395,1705543850428,-500.0,0.00022191,2]
[312008396,1705543850438,-500.0,0.00022191,2]
[312008397,1705543850447,-1522.51,0.00022191,2]
[312008398,1705543850457,-418.29155801,0.00022191,2]
[312008399,1705543850466,-500.0,0.00022191,2]
[312008400,1705543850475,-1835.51,0.00022191,2]
[312008401,1705543850485,-500.0,0.00022191,2]
[312008402,1705543850494,-500.0,0.00022191,2]
[312008403,1705543850504,-500.0,0.00022191,2]
[312008404,1705543850513,-546.78211286,0.00022191,2]
[312008405,1705543850522,-289.48786857,0.00022191,2]
[312008406,1705543850532,-500.0,0.00022191,2]
[312008407,1705543850541,-534.53793094,0.00022191,2]
[312008408,1705543850551,-500.0,0.00022191,2]
[312008409,1705543850560,-500.0,0.00022191,2]
[312008410,1705543850569,-734.05,0.00022191,2]
[312008411,1705543850579,-500.0,0.00022191,2]
[312008412,1705543850588,-500.0,0.00022191,2]
[312008413,1705543850598,-620.88090919,0.00022191,2]
[312008414,1705543850607,-434.6421671,0.00022191,2]
[312008415,1705543850616,-500.0,0.00022191,2]
[312008416,1705543850625,-500.0,0.00022191,2]
[312008417,1705543850634,-1014.42,0.00022191,2]
[312008418,1705543850644,-245.18844031,0.00022191,2]
[312008419,1705543850653,-500.0,0.00022191,2]
[312008420,1705543850662,-533.96166196,0.00022191,2]
[312008421,1705543850672,-527.46572097,0.00022191,2]
[312008422,1705543850681,-510.0962187,0.00022191,2]
[312008423,1705543850690,-737.49,0.00022191,2]
[312008424,1705543850700,-524.42307783,0.00022191,2]
[312008425,1705543850709,-604.44978289,0.00022191,2]
[312008426,1705543850718,-518.74365033,0.00022191,2]
[312008427,1705543850728,-214.35260637,0.00022191,2]
[312008428,1705543850737,-651.65,0.00022191,2]
[312008429,1705543850746,-1442.92,0.00022191,2]
[312008430,1705543850756,-509.1544529,0.00022191,2]
[312008431,1705543850765,-500.0,0.00022191,2]
[312008432,1705543850774,-619.66809146,0.00022191,2]
[312008433,1705543850783,-500.0,0.00022191,2]
[312008434,1705543850793,-500.0,0.00022191,2]
[312008435,1705543850803,-500.0,0.00022191,2]
[312008436,1705543850812,-500.0,0.00022191,2]
[312008437,1705543850821,-307.28444472,0.00022191,2]
[312008438,1705543850831,-500.0,0.00022191,2]
[312008439,1705543850841,-500.0,0.00022191,2]
[312008440,1705543850851,-500.0,0.00022191,2]
[312008441,1705543850861,-620.61,0.00022191,2]
[312008442,1705543850870,-500.0,0.00022191,2]
[312008443,1705543850879,-508.19750073,0.00022191,2]
[312008444,1705543850888,-500.0,0.00022191,2]
[312008445,1705543850897,-508.45506156,0.00022191,2]
[312008446,1705543850906,-272.54813604,0.00022191,2]
[312008447,1705543850916,-500.0,0.00022191,2]
[312008448,1705543850925,-500.0,0.00022191,2]
[312008449,1705543850936,-500.0,0.00022191,2]
[312008450,1705543850945,-2649.1,0.00022191,2]
[312008451,1705543850954,-516.0543468,0.00022191,2]
[312008452,1705543850963,-500.0,0.00022191,2]
[312008453,1705543850973,-225.52992274,0.00022191,2]
[312008454,1705543850982,-500.0,0.00022191,2]
[312008455,1705543850991,-500.0,0.00022191,2]
[312008456,1705543851000,-984.76,0.00022191,2]
[312008457,1705543851009,-500.0,0.00022191,2]
[312008458,1705543851019,-824.72,0.00022191,2]
[312008459,1705543851028,-507.45993321,0.00022191,2]
[312008460,1705543851038,-198.26607358,0.00022191,2]
[312008461,1705543851047,-868.11,0.00022191,2]
[312008462,1705543851057,-500.0,0.00022191,2]
[312008463,1705543851066,-500.0,0.00022191,2]
[312008464,1705543851076,-581.7049767,0.00022191,2]
[312008465,1705543851085,-500.0,0.00022191,2]
[312008466,1705543851094,-507.09010066,0.00022191,2]
[312008467,1705543851104,-1242.88,0.00022191,5]
[312008468,1705543851113,-259.37085682,0.00022191,2]
[312008469,1705543851122,-1415.3,0.00022191,2]
[312008470,1705543851131,-518.07958122,0.00022191,2]
[312008471,1705543851141,-666.4,0.00022191,2]
[312008472,1705543851150,-500.0,0.00022191,5]
[312008473,1705543851160,-500.0,0.00022191,2]
[312008474,1705543851169,-1219.63,0.00022191,2]
[312008475,1705543851179,-540.23127804,0.00022191,2]
[312008476,1705543851188,-500.0,0.00022191,2]
[312008477,1705543851197,-500.0,0.00022191,2]
[312008478,1705543851206,-500.0,0.00022191,2]
[312008479,1705543851216,-516.97953245,0.00022191,2]
[312008480,1705543851225,-2292.67,0.00022191,2]
[312008481,1705543851235,-500.0,0.00022191,2]
[312008482,1705543851245,-1582.38,0.00022191,2]
[312008483,1705543851254,-905.06,0.00022191,2]
[312008484,1705543851263,-503.64462733,0.00022191,2]
[312008485,1705543851273,-500.0,0.00022191,2]
[312008486,1705543851282,-525.8381687,0.00022191,2]
[312008487,1705543851292,-500.0,0.00022191,2]
[312008488,1705543851301,-500.0,0.00022191,2]
[312008489,1705543851311,-500.0,0.00022191,2]
[312008490,1705543851320,-418.59720506,0.00022191,2]
[312008491,1705543851330,-11302.02,0.00022191,2]
[312008492,1705543851339,-1361.02,0.00022191,2]
[312008493,1705543851349,-500.0,0.00022191,2]
[312008494,1705543851361,-1209.51,0.00022191,2]
[312008495,1705543851371,-500.0,0.00022191,2]
[312008496,1705543851380,-515.39655874,0.00022191,2]
[312008497,1705543851390,-4034.91,0.00022191,2]
[312008498,1705543851412,-646.44,0.00022191,2]
[312008499,1705543851423,-502.60096095,0.00022191,2]
[312008500,1705543851433,-500.0,0.00022191,2]
[312008501,1705543851442,-500.0,0.00022191,2]
[312008502,1705543851452,-1045.98,0.00022191,2]
[312008503,1705543851461,-2484.71,0.00022191,2]
[312008504,1705543851470,-4231.9,0.00022191,2]
[312008505,1705543851480,-506.16078623,0.00022191,2]
[312008506,1705543851489,-834.49,0.00022191,2]
[312008507,1705543851498,-500.0,0.00022191,2]
[312008508,1705543851508,-500.0,0.00022191,2]
[312008509,1705543851517,-514.03505556,0.00022191,2]
[312008510,1705543851527,-1120.57,0.00022191,2]
[312008511,1705543851537,-277.86337177,0.00022191,2]
[312008512,1705543851546,-500.0,0.00022191,2]
[312008513,1705543851555,-1187.74,0.00022191,2]
[312008514,1705543851565,-500.0,0.00022191,2]
[312008515,1705543851575,-500.0,0.00022191,2]
[312008516,1705543851585,-512.25999308,0.00022191,2]
[312008517,1705543851595,-518.21868354,0.00022191,2]
[312008518,1705543851604,-500.0,0.00022191,2]
[312008519,1705543851613,-513.54138427,0.00022191,2]
[312008520,1705543851622,-500.0,0.00022191,2]
[312008521,1705543851633,-1286.11,0.00022191,2]
[312008522,1705543851643,-522.08,0.00022191,2]
[312008523,1705543851652,-264.78730461,0.00022191,2]
[312008524,1705543851661,-508.33,0.00022191,2]
[312008525,1705543851671,-1311.53,0.00022191,2]
[312008526,1705543851680,-744.41,0.00022191,2]
[312008527,1705543851690,-500.0,0.00022191,2]
[312008528,1705543851699,-500.0,0.00022191,2]
[312008529,1705543851710,-500.0,0.00022191,2]
[312008530,1705543851721,-500.0,0.00022191,2]
[312008531,1705543851730,-531.74,0.00022191,2]
[312008532,1705543851740,-730.72,0.00022191,2]
[312008533,1705543851749,-653.92,0.00022191,2]
[312008534,1705543851757,-3116.76,0.00022191,2]
[312008535,1705543851766,-500.0,0.00022191,2]
[312008536,1705543851775,-3560.03,0.00022191,2]
[312008537,1705543851784,-772.51,0.00022191,2]
[312008538,1705543851793,-500.0,0.00022191,2]
[312008539,1705543851803,-500.0,0.00022191,2]
[312008540,1705543851811,-500.0,0.00022191,2]
[312008541,1705543851821,-500.0,0.00022191,2]
[312008542,1705543851832,-500.0,0.00022191,2]
[312008543,1705543851841,-2915.65,0.00022191,2]
[312008544,1705543851850,-683.29,0.00022191,2]
[312008545,1705543851859,-500.0,0.00022191,2]
[312008546,1705543851869,-508.99907955,0.00022191,2]
[312008547,1705543851878,-539.65,0.00022191,2]
[312008548,1705543851887,-500.0,0.00022191,2]
[312008549,1705543851896,-519.68415276,0.00022191,2]
[312008550,1705543851906,-2250.09,0.00022191,2]
[312008551,1705543851915,-500.0,0.00022191,2]
[312008552,1705543851924,-500.0,0.00022191,2]
[312008553,1705543851933,-538.63,0.00022191,2]
[312008554,1705543851942,-500.0,0.00022191,2]
[312008555,1705543851951,-500.0,0.00022191,2]
[312008556,1705543851960,-500.0,0.00022191,2]
[312008557,1705543851969,-500.0,0.00022191,2]
[312008558,1705543851979,-500.0,0.00022191,2]
[312008559,1705543851987,-936.65,0.00022191,2]
[312008560,1705543851997,-500.0,0.00022191,2]
[312008561,1705543852006,-1327.81,0.00022191,2]
[312008562,1705543852015,-508.21916316,0.00022191,2]
[312008563,1705543852024,-515.81149908,0.00022191,2]
[312008564,1705543852033,-500.0,0.00022191,2]
[312008565,1705543852043,-742.58,0.00022191,2]
[312008566,1705543852052,-500.0,0.00022191,2]
[312008567,1705543852062,-506.39423283,0.00022191,2]
[312008568,1705543852071,-161.01765918,0.00022191,2]
[312008569,1705543852082,-500.0,0.00022191,2]
[312008570,1705543852092,-500.0,0.00022191,2]
[312008571,1705543852102,-506.5,0.00022191,2]
[312008572,1705543852112,-500.0,0.00022191,2]
[312008573,1705543852122,-500.0,0.00022191,2]
[312008574,1705543852131,-500.0,0.00022191,2]
[312008575,1705543852141,-500.0,0.00022191,2]
[312008576,1705543852150,-500.0,0.00022191,2]
[312008577,1705543852160,-1109.85,0.00022191,2]
[312008578,1705543852169,-500.0,0.00022191,2]
[312008579,1705543852179,-760.25,0.00022191,2]
[312008580,1705543852188,-514.36,0.00022191,2]
[312008581,1705543852196,-500.0,0.00022191,2]
[312008582,1705543852206,-500.0,0.00022191,2]
[312008583,1705543852219,-658.43,0.00022191,2]
[312008584,1705543852233,-500.0,0.00022191,2]
[312008585,1705543852248,-500.0,0.00022191,2]
[312008586,1705543852262,-500.0,0.00022191,2]
[312008587,1705543852274,-500.0,0.00022191,2]
[312008588,1705543852285,-500.0,0.00022191,2]
[312008589,1705543852299,-1554.8,0.00022191,2]
[312008590,1705543852311,-500.0,0.00022191,2]
[312008591,1705543852325,-382.35838846,0.00022191,2]
[312008592,1705543852338,-500.0,0.00022191,2]
[312008593,1705543852351,-500.0,0.00022191,2]
[312008594,1705543852366,-1812.06,0.00022191,2]
[312008595,1705543852377,-695.25,0.00022191,2]
[312008596,1705543852387,-500.0,0.00022191,2]
[312008597,1705543852401,-5134.61,0.00022191,2]
[312008598,1705543852413,-500.0,0.00022191,2]
[312008599,1705543852426,-1792.54,0.00022191,2]
[312008600,1705543852438,-612.73448444,0.00022191,2]
[312008601,1705543852451,-500.0,0.00022191,2]
[312008602,1705543852465,-500.0,0.00022191,2]
[312008603,1705543852476,-785.16,0.00022191,2]
[312008604,1705543852487,-547.14869031,0.00022191,2]
[312008605,1705543852501,-2422.6,0.00022191,2]
[312008606,1705543852513,-500.0,0.00022191,2]
[312008607,1705543852527,-500.0,0.00022191,2]
[312008608,1705543852539,-505.6,0.00022191,2]
[312008609,1705543852551,-500.0,0.00022191,2]
[312008610,1705543852562,-1744.29,0.00022191,2]
[312008611,1705543852575,-284.24516469,0.00022191,2]
[312008612,1705543852588,-504.42478899,0.00022191,2]
[312008613,1705543852601,-500.0,0.00022191,2]
[312008614,1705543852614,-535.98,0.00022191,2]
[312008615,1705543852627,-500.0,0.00022191,2]
[312008616,1705543852639,-7622.96,0.00022191,2]
[312008617,1705543852653,-500.0,0.00022191,2]
[312008618,1705543852663,-500.0,0.00022191,2]
[312008619,1705543852673,-525.90730229,0.00022191,2]
[312008620,1705543852683,-548.89616826,0.00022191,2]
[312008621,1705543852694,-500.0,0.00022191,2]
[312008622,1705543852707,-500.0,0.00022191,2]
[312008623,1705543852719,-2297.42,0.00022191,2]
[312008624,1705543852730,-905.23,0.00022191,2]
[312008625,1705543852744,-631.53,0.00022191,2]
[312008626,1705543852755,-500.0,0.00022191,2]
[312008627,1705543852766,-279.42971363,0.00022191,2]
[312008628,1705543852776,-526.84,0.00022191,2]
[312008629,1705543852787,-500.0,0.00022191,2]
[312008630,1705543852798,-500.0,0.00022191,2]
[312008631,1705543852809,-500.0,0.00022191,2]
[312008632,1705543852820,-500.0,0.00022191,2]
[312008633,1705543852832,-500.0,0.00022191,2]
[312008634,1705543852844,-1259.74,0.00022191,2]
[312008635,1705543852855,-500.0,0.00022191,2]
[312008636,1705543852866,-500.0,0.00022191,2]
[312008637,1705543852877,-500.0,0.00022191,2]
[312008638,1705543852889,-500.0,0.00022191,2]
[312008639,1705543852900,-500.0,0.00022191,2]
[312008640,1705543852912,-500.0,0.00022191,2]
[312008641,1705543852923,-500.0,0.00022191,2]
[312008642,1705543852935,-514.66334562,0.00022191,2]
[312008643,1705543852946,-1144.73,0.00022191,2]
[312008644,1705543852958,-500.0,0.00022191,2]
[312008645,1705543852969,-500.0,0.00022191,2]
[312008646,1705543852980,-544.71994516,0.00022224,2]
[312008647,1705543852991,-150.0,0.00022228,2]
[312008648,1705543853002,-9327.60817687,0.00022238,2]
[312008649,1705543853013,-157.28,0.00022279,2]
[312008650,1705543853024,-176.3,0.00022288,2]
[312008651,1705543853035,-238.736,0.00022297,2]
[312008652,1705543853046,-9327.60817687,0.00022312,2]
[312008653,1705543853058,-151.75,0.00022331,2]
[312008654,1705543853069,-150.0,0.00022364,2]
[312008655,1705543853081,-186.39555416,0.00022365,2]
[312008656,1705543853092,-2237.29450735,0.00022365,2]
[312008657,1705543853103,-163.3,0.00022369,2]
[312008658,1705543853114,-9327.60817687,0.00022385,2]
[312008659,1705543853126,-150.0,0.00022389,2]
[312008660,1705543853137,-544.71994516,0.00022393,2]
[312008661,1705543853148,-3263.0,0.000224,2]
[312008662,1705543853159,-34537.0,0.000224,2]
[312008663,1705543853170,-150.0,0.00022407,2]
[312008664,1705543853180,-760.86722157,0.00022428,2]
[312008665,1705543853192,-195.04292305,0.00022454,2]
[312008666,1705543853203,-195.04292305,0.00022454,2]
[312008667,1705543853214,-9327.60817687,0.00022459,2]
[312008668,1705543853225,-879.92,0.00022464,2]
[312008669,1705543853236,-235115.52791701,0.00022464,3]
[312008670,1705543853861,-609.86027185,0.00021917,2]
[312008671,1705543853871,-195.32432959,0.00022464,3]
[312008672,1705543853884,-6606.55426422,0.00022464,3]
[312008673,1705543853904,-400.30111,0.00021917,2]
[312008674,1705543853954,-47.68667156,0.00021917,2]
[312008675,1705543853965,-25227.52470082,0.00022464,3]
[312008676,1705543853977,-348.48246166,0.00022464,3]
[312008677,1705543854245,-380.66497997,0.00022464,3]
[312008678,1705543854408,-335.79774994,0.00021899,2]
[312008679,1705543854425,-270.70507651,0.00021899,2]
[312008680,1705543854436,-59040.58683539,0.00022464,3]
[312008681,1705543854752,-381.87407514,0.00022464,3]
[312008682,1705543854783,-4951.87868286,0.00022464,3]
[312008683,1705543854802,-252.57232,0.00022464,3]
[312008684,1705543854814,-210853.08546936,0.00022464,3]
[312008685,1705543854826,-3071.17279223,0.00022464,3]
[312008686,1705543854837,-10221.16517317,0.00022464,3]
[312008687,1705543854850,-1771.22584061,0.00022464,3]
[312008688,1705543854861,-1321.86465,0.00022464,3]
[312008689,1705543854873,-498.16858409,0.00022464,3]
[312008690,1705543854906,-500.0,0.00021917,2]
[312008691,1705543854915,-382.98981488,0.00022464,3]
[312008692,1705543854926,-466.70474391,0.00022464,3]
[312008693,1705543854943,-500.0,0.00022191,2]
[312008694,1705543854952,-14350.0,0.00022464,3]
[312008695,1705543854964,-7017.81791303,0.00022464,3]
[312008696,1705543854975,-662.46450155,0.00022464,3]
[312008697,1705543854986,-2029.05262412,0.00022464,3]
[312008698,1705543854997,-1423.82121865,0.00022464,3]
[312008699,1705543855009,-12939.3400424,0.00022464,3]
[312008700,1705543855020,-403.53386833,0.00022464,3]
[312008701,1705543855031,-467.96350648,0.00022464,3]
[312008702,1705543855060,-308.87403957,0.00022464,3]
[312008703,1705543855077,-2082.27515063,0.00022464,3]
[312008705,1705543915236,471.23956679,0.0003,120]
[312008720,1705544090916,654.29,0.00018336,2]
[312008736,1705544116126,165.79,0.00016203,2]
[312008751,1705544404315,155.12942928,0.00016286,2]
[312008752,1705544426444,225.39380129,0.00016286,2]
[312008753,1705544516204,621.57,0.00018472,2]
[312008936,1705544934378,3531.09667426,0.00018472,2]
[312008937,1705544947765,619.96,0.00018336,2]
[312008939,1705544954410,3445.43664442,0.00018472,2]
[312009093,1705545031346,-1915.18587891,0.00019738,2]
[312009094,1705545031358,-418.13341818,0.00019739,2]
[312009095,1705545031368,-370.60516149,0.00019739,2]
[312009096,1705545031381,-340.38943778,0.00019739,2]
[312009097,1705545031391,-206.0,0.00019742,2]
[312009098,1705545031402,-686.38990318,0.0002,2]
[312009099,1705545031415,-525.01690073,0.0002,2]
[312009100,1705545031428,-588.59319609,0.0002,2]
[312009101,1705545031439,-575.1,0.00020123,2]
[312009102,1705545031450,-200.0,0.00020126,2]
[312009103,1705545031460,-629.24811707,0.00020194,2]
[312009104,1705545031472,-370.75188293,0.00020194,2]
[312009105,1705545031482,-373.88980319,0.0002023,2]
[312009106,1705545031515,-480.95,0.0002023,2]
[312009107,1705545031528,-689.30241408,0.0002023,2]
[312009108,1705545031561,-562.43544538,0.0002023,2]
[312009109,1705545031573,-279.91233735,0.0002023,2]
[312009110,1705545031584,-821.41932244,0.00020253,2]
[312009111,1705545031602,-298.69050621,0.00020253,2]
[312009112,1705545031615,-1704.18017135,0.00020253,2]
[312009113,1705545031625,-150.48,0.00020254,2]
[312009114,1705545031635,-170.46,0.00020254,2]
[312009115,1705545031645,-150.0,0.00020254,2]
[312009116,1705545031655,-200.0,0.00020254,2]
[312009117,1705545031664,-8239.93246655,0.00020254,2]
[312009118,1705545031698,-1119.07440618,0.00020254,2]
[312009119,1705545031711,-3937.39106229,0.00020254,2]
[312009120,1705545031735,-365.96956863,0.00020254,2]
[312009142,1705545037346,-4459.38620389,0.00020254,2]
[312009143,1705545037558,-1841.84,0.00020254,2]
[312009144,1705545037620,-531.3020004,0.00020254,2]
[312009145,1705545037632,-2983.85243052,0.00020254,2]
[312009146,1705545037669,-421.25186154,0.00020254,2]
[312009147,1705545037680,-205.36879139,0.00020254,2]
[312009148,1705545037692,-293.07120861,0.00020254,2]
[312009149,1705545037701,-750.0,0.00020254,2]
[312009150,1705545037711,-500.0,0.00020274,2]
[312009151,1705545037721,-607.09444478,0.00020281,2]
[312009330,1705545039844,-332.39555522,0.00020281,2]
[312009332,1705545039854,-461.18318464,0.00020291,2]
[312009334,1705545039865,-326.73198593,0.00020291,2]
[312009336,1705545039877,-1110.13482943,0.00020291,2]
[312009338,1705545039886,-170.98417058,0.00020327,2]
[312009340,1705545039898,-79.01582942,0.00020327,2]
[312009342,1705545039908,-155.48,0.00020358,2]
[312009344,1705545039917,-69.61444948,0.00020456,2]
[312009347,1705545039933,-89.51555052,0.00020456,2]
[312009349,1705545039942,-150.48,0.00020543,2]
[312009351,1705545039952,-132.04438203,0.000206,2]
[312009354,1705545039973,-487.91561797,0.000206,2]
[312009356,1705545039982,-155.48,0.00020712,2]
[312009358,1705545039991,-150.48,0.00020833,2]
[312009360,1705545040001,-119.84911277,0.00020871,2]
[312009366,1705545040056,-30.15088723,0.00020871,2]
[312009367,1705545040065,-198.97240308,0.000209,2]
[312009368,1705545040074,-176.3,0.00020917,2]
[312009369,1705545040084,-170.46,0.00020929,2]
[312009370,1705545040093,-155.48,0.00021066,2]
[312009371,1705545040102,-150.0,0.0002111,2]
[312009372,1705545040111,-150.48,0.00021122,2]
[312009373,1705545040120,-163.2,0.0002122,2]
[312009374,1705545040129,-939.49,0.00021259,2]
[312009375,1705545040138,-150.0,0.00021408,2]
[312009377,1705545040147,-150.48,0.00021411,2]
[312009379,1705545040156,-155.48,0.00021419,2]
[312009381,1705545040165,-176.3,0.00021465,2]
[312009383,1705545040174,-513.66545025,0.0002147,2]
[312009385,1705545040183,-150.0,0.00021558,2]
[312009387,1705545040192,-150.0,0.00021598,2]
[312009389,1705545040201,-170.46,0.00021604,2]
[312009391,1705545040210,-500.0,0.00021605,2]
[312009393,1705545040220,-1078.2979,0.00021617,2]
[312009395,1705545040229,-150.0,0.00021693,2]
[312009397,1705545040238,-150.48,0.00021701,2]
[312009399,1705545040246,-175.10328279,0.00021704,2]
[312009401,1705545040256,-760.86722157,0.00021715,2]
[312009403,1705545040265,-243.39544688,0.00021715,2]
[312009439,1705545040594,-38.7661683,0.00021715,2]
[312009441,1705545040603,-310.50049061,0.00021715,2]
[312009443,1705545040613,-350.66007833,0.00021715,2]
[312009445,1705545040623,-155.98532929,0.00021715,2]
[312009447,1705545040632,-220.5622834,0.00021715,2]
[312009449,1705545040641,-150.0,0.00021716,2]
[312009451,1705545040650,-150.0,0.00021716,2]
[312009453,1705545040659,-720.96,0.00021717,2]
[312009455,1705545040669,-63.31565007,0.00021717,2]
[312009457,1705545040681,-713.6500075,0.00021717,2]
[312009463,1705545040733,-223.03434243,0.00021717,2]
[312009465,1705545040742,-21136.26260041,0.00021717,2]
[312009467,1705545040753,-5506.7444118,0.00021717,2]
[312009469,1705545040765,-4086.19570284,0.00021717,2]
[312009471,1705545040776,-843.56738472,0.00021717,2]
[312009474,1705545040787,-6285.25396417,0.00021717,2]
[312009493,1705545040959,-207141.97593606,0.00021717,2]
[312009495,1705545040968,-94298.46549306,0.00021717,2]
[312009586,1705545042395,-431.08907972,0.00020629,2]
[312009587,1705545042404,-504.31090528,0.00021717,2]
[312009588,1705545042416,-1548.15,0.00021717,2]
[312009589,1705545042427,-2296.08,0.00021717,2]
[312009590,1705545042439,-432.0,0.00021717,2]
[312009591,1705545042450,-920.99360166,0.00021717,2]
[312009592,1705545042460,-418.24,0.00021781,2]
[312009593,1705545042470,-878.74,0.00021781,2]
[312009594,1705545042479,-1000.0,0.00021817,2]
[312009595,1705545042488,-3244.88824306,0.00021817,2]
[312009596,1705545042500,-293.29728621,0.00021817,2]
[312009597,1705545042554,-1461.81447073,0.00021817,2]
[312009598,1705545042563,-928.69156147,0.00021817,2]
[312009599,1705545042829,-291.23162982,0.00021817,2]
[312009600,1705545042878,-375.0,0.00021817,2]
[312009601,1705545042890,-296.39316772,0.00021817,2]
[312009602,1705545042902,-702.38304042,0.00021817,2]
[312009603,1705545042913,-814.20859108,0.00021817,2]
[312009604,1705545043002,-1210.36080118,0.00021817,2]
[312009605,1705545043017,-50936.73120831,0.00021817,2]
[312009606,1705545043027,-11701.73806088,0.00021817,2]
[312009607,1705545043037,-216.43242103,0.00021817,2]
[312009608,1705545043046,-150.0,0.00021837,2]
[312009609,1705545043055,-751.28015606,0.000219,2]
[312009610,1705545043064,-2457.15,0.000219,2]
[312009611,1705545043073,-1010.0,0.000219,2]
[312009612,1705545043082,-195.04292305,0.00021907,2]
[312009613,1705545043093,-11701.73806084,0.00021915,2]
[312009614,1705545043101,-22432.76142363,0.00021916,2]
[312009615,1705545043110,-500.0,0.00021917,2]
[312009616,1705545043119,-502.77860806,0.00021917,2]
[312009617,1705545043128,-502.92939674,0.00021917,2]
[312009618,1705545043136,-502.62437428,0.00021917,2]
[312009619,1705545043145,-500.0,0.00021917,2]
[312009620,1705545043154,-500.0,0.00021917,2]
[312009621,1705545043163,-502.51991684,0.00021917,2]
[312009622,1705545043172,-230.16810563,0.00021917,2]
[312009623,1705545043181,-506.19093667,0.00021917,2]
[312009624,1705545043190,-500.92376551,0.00021917,2]
[312009625,1705545043199,-503.04785048,0.00021917,2]
[312009626,1705545043209,-264.50122742,0.00021917,2]
[312009627,1705545043218,-500.64192984,0.00021917,2]
[312009628,1705545043228,-500.0,0.00021917,2]
[312009629,1705545043238,-500.0,0.00021917,2]
[312009630,1705545043247,-500.0,0.00021917,2]
[312009631,1705545043256,-500.0,0.00021917,2]
[312009632,1705545043266,-510.43110097,0.00021917,2]
[312009633,1705545043275,-513.65088748,0.00021917,2]
[312009634,1705545043285,-500.0,0.00021917,2]
[312009635,1705545043294,-500.0,0.00021917,2]
[312009636,1705545043303,-500.0,0.00021917,2]
[312009637,1705545043312,-509.85403886,0.00021917,2]
[312009638,1705545043322,-485.0,0.00021917,2]
[312009639,1705545043331,-500.0,0.00021917,2]
[312009640,1705545043341,-500.0,0.00021917,2]
[312009641,1705545043350,-485.23319014,0.00021917,2]
[312009642,1705545043359,-507.08995916,0.00021917,2]
[312009643,1705545043369,-509.69330259,0.00021917,2]
[312009644,1705545043378,-507.05834785,0.00021917,2]
[312009645,1705545043387,-513.89730793,0.00021917,2]
[312009646,1705545043397,-512.25560821,0.00021917,2]
[312009647,1705545043406,-500.0,0.00021917,2]
[312009648,1705545043416,-500.0,0.00021917,2]
[312009649,1705545043425,-500.0,0.00021917,2]
[312009650,1705545043434,-500.0,0.00021917,2]
[312009651,1705545043444,-259.58502423,0.00021917,2]
[312009652,1705545043454,-500.0,0.00021917,2]
[312009653,1705545043463,-366.6887735,0.00021917,2]